[Event "*** Titled Tuesday Blitz"]
[Site "Chess.com"]
[Date "2020.05.12"]
[Round "1"]
[White "Mikhail_Biryukov"]
[Black "Yanidze"]
[Result "0-1"]
[WhiteElo "2653"]
[BlackElo "2360"]
[TimeControl "180+1"]
[EndTime "10:06:42 PDT"]
[Termination "Yanidze won by checkmate"]

1. e4 {[%clk 0:03:00.9]} 1... d6 {[%clk 0:02:59.9]} 2. Nc3 {[%clk 0:02:58.6]}
2... Nf6 {[%clk 0:03:00.5]} 3. d4 {[%clk 0:02:56.6]} 3... g6 {[%clk 0:03:00.7]}
4. h3 {[%clk 0:02:56.1]} 4... a6 {[%clk 0:02:59.9]} 5. Be3 {[%clk 0:02:56.5]}
5... b5 {[%clk 0:03:00.1]} 6. a3 {[%clk 0:02:56.1]} 6... Nbd7 {[%clk 0:02:59.9]}
7. g4 {[%clk 0:02:55.1]} 7... Bb7 {[%clk 0:03:00]} 8. Bg2 {[%clk 0:02:54.9]}
8... Nb6 {[%clk 0:02:59.6]} 9. b3 {[%clk 0:02:55.1]} 9... h5 {[%clk 0:02:59.1]}
10. g5 {[%clk 0:02:54.5]} 10... Nfd7 {[%clk 0:02:59.4]} 11. h4 {[%clk
0:02:54.3]} 11... Bg7 {[%clk 0:02:59.5]} 12. Nge2 {[%clk 0:02:54.1]} 12... Rc8
{[%clk 0:02:56]} 13. f4 {[%clk 0:02:51.2]} 13... c5 {[%clk 0:02:56.3]} 14. Qd2
{[%clk 0:02:42.7]} 14... Qc7 {[%clk 0:02:44.6]} 15. Rd1 {[%clk 0:02:24.9]} 15...
O-O {[%clk 0:02:21.3]} 16. d5 {[%clk 0:02:17.8]} 16... b4 {[%clk 0:02:15.1]} 17.
Nb1 {[%clk 0:02:17.6]} 17... bxa3 {[%clk 0:02:11.9]} 18. Nxa3 {[%clk 0:02:17.3]}
18... c4 {[%clk 0:02:12.6]} 19. O-O {[%clk 0:02:12.8]} 19... c3 {[%clk
0:01:42.1]} 20. Qe1 {[%clk 0:02:08.9]} 20... e6 {[%clk 0:01:40.9]} 21. dxe6
{[%clk 0:01:58.1]} 21... fxe6 {[%clk 0:01:38.5]} 22. Nd4 {[%clk 0:01:57.9]}
22... Rce8 {[%clk 0:01:32.1]} 23. Nb1 {[%clk 0:01:51.5]} 23... e5 {[%clk
0:01:02.1]} 24. fxe5 {[%clk 0:01:50.6]} 24... Rxf1+ {[%clk 0:00:52.6]} 25. Kxf1
{[%clk 0:01:49.8]} 25... Nxe5 {[%clk 0:00:31.7]} 26. Nxc3 {[%clk 0:01:44.3]}
26... Ng4 {[%clk 0:00:31.2]} 27. Kg1 {[%clk 0:01:37.5]} 27... d5 {[%clk
0:00:27.9]} 28. Bf3 {[%clk 0:01:05.4]} 28... Qh2+ {[%clk 0:00:25.1]} 29. Kf1
{[%clk 0:01:05.3]} 29... dxe4 {[%clk 0:00:15.1]} 30. Bxg4 {[%clk 0:01:01.5]}
30... hxg4 {[%clk 0:00:14.7]} 31. Rd2 {[%clk 0:00:59.2]} 31... Rf8+ {[%clk
0:00:13.6]} 32. Rf2 {[%clk 0:00:57.9]} 32... g3 {[%clk 0:00:10.5]} 33. Rxf8+
{[%clk 0:00:57.5]} 33... Bxf8 {[%clk 0:00:09.4]} 34. Qd2 {[%clk 0:00:57.6]}
34... Qh1+ {[%clk 0:00:06]} 35. Bg1 {[%clk 0:00:57.8]} 35... g2+ {[%clk
0:00:03.5]} 36. Qxg2 {[%clk 0:00:57.7]} 36... Qxh4 {[%clk 0:00:03]} 37. Be3
{[%clk 0:00:55.9]} 37... Bb4 {[%clk 0:00:03]} 38. Nce2 {[%clk 0:00:55.4]} 38...
Qe1# {[%clk 0:00:03.4]} 0-1

[Event "*** Titled Tuesday Blitz"]
[Site "Chess.com"]
[Date "2020.05.12"]
[Round "1"]
[White "ZEN-22"]
[Black "tigra"]
[Result "1-0"]
[WhiteElo "2435"]
[BlackElo "2790"]
[TimeControl "180+1"]
[EndTime "10:06:43 PDT"]
[Termination "ZEN-22 won by resignation"]

1. e4 {[%clk 0:02:59.2]} 1... c5 {[%clk 0:03:00]} 2. b4 {[%clk 0:02:53.6]} 2...
cxb4 {[%clk 0:02:59.7]} 3. a3 {[%clk 0:02:53.3]} 3... e6 {[%clk 0:02:17]} 4. Nf3
{[%clk 0:02:45.1]} 4... Nc6 {[%clk 0:02:12.7]} 5. d4 {[%clk 0:02:42.9]} 5...
bxa3 {[%clk 0:02:11.7]} 6. c3 {[%clk 0:02:42.6]} 6... d5 {[%clk 0:02:05.9]} 7.
e5 {[%clk 0:02:40.9]} 7... a2 {[%clk 0:02:01.6]} 8. Rxa2 {[%clk 0:02:40]} 8...
Nge7 {[%clk 0:02:02.1]} 9. Na3 {[%clk 0:02:36.2]} 9... Nf5 {[%clk 0:01:55.2]}
10. Bd3 {[%clk 0:02:35.6]} 10... Be7 {[%clk 0:01:52.5]} 11. g4 {[%clk
0:02:32.8]} 11... Nh4 {[%clk 0:01:52.1]} 12. Nxh4 {[%clk 0:02:30.9]} 12... Bxh4
{[%clk 0:01:53]} 13. Nb5 {[%clk 0:02:29.1]} 13... O-O {[%clk 0:01:51.3]} 14. g5
{[%clk 0:02:15.5]} 14... Bxg5 {[%clk 0:01:48.1]} 15. Rg1 {[%clk 0:02:14.6]}
15... Bxc1 {[%clk 0:01:43.3]} 16. Qxc1 {[%clk 0:02:14.3]} 16... f5 {[%clk
0:01:36.2]} 17. Qh6 {[%clk 0:01:56.8]} 17... Qe7 {[%clk 0:01:32.5]} 18. f4
{[%clk 0:01:54.6]} 18... Kh8 {[%clk 0:01:29.4]} 19. Qh3 {[%clk 0:01:53.2]} 19...
Bd7 {[%clk 0:01:19.4]} 20. Rag2 {[%clk 0:01:51]} 20... Rg8 {[%clk 0:00:51.9]}
21. Nd6 {[%clk 0:01:46.7]} 21... Be8 {[%clk 0:00:37.6]} 22. Rg3 {[%clk
0:01:30.6]} 22... g6 {[%clk 0:00:34.2]} 23. Kd2 {[%clk 0:01:10.1]} 23... Rd8
{[%clk 0:00:33.3]} 24. Bb5 {[%clk 0:00:56.4]} 24... Rxd6 {[%clk 0:00:23]} 25.
exd6 {[%clk 0:00:56.1]} 25... Qxd6 {[%clk 0:00:23.9]} 26. Qh4 {[%clk 0:00:55.7]}
26... Qe7 {[%clk 0:00:19]} 27. Qh6 {[%clk 0:00:54]} 27... Qf8 {[%clk 0:00:13.1]}
28. Qh4 {[%clk 0:00:50.8]} 28... Rg7 {[%clk 0:00:09.1]} 29. Bxc6 {[%clk
0:00:48.2]} 29... Bxc6 {[%clk 0:00:10]} 30. Rxg6 {[%clk 0:00:46.6]} 30... Be8
{[%clk 0:00:10.9]} 31. Rxg7 {[%clk 0:00:46.4]} 31... Qxg7 {[%clk 0:00:04.3]} 32.
Rxg7 {[%clk 0:00:45.1]} 32... Kxg7 {[%clk 0:00:05.2]} 33. Qe7+ {[%clk
0:00:45.1]} 33... Bf7 {[%clk 0:00:05.1]} 34. Qd6 {[%clk 0:00:46]} 1-0

[Event "*** Titled Tuesday Blitz"]
[Site "Chess.com"]
[Date "2020.05.12"]
[Round "1"]
[White "NFork"]
[Black "Warre"]
[Result "0-1"]
[WhiteElo "1902"]
[BlackElo "2473"]
[TimeControl "180+1"]
[EndTime "10:06:44 PDT"]
[Termination "Warre won on time"]

1. c4 {[%clk 0:02:56.4]} 1... Nf6 {[%clk 0:02:58.9]} 2. g3 {[%clk 0:02:55.9]}
2... e6 {[%clk 0:02:54.1]} 3. Bg2 {[%clk 0:02:55.9]} 3... d5 {[%clk 0:02:54]} 4.
Nf3 {[%clk 0:02:56.2]} 4... Be7 {[%clk 0:02:54]} 5. O-O {[%clk 0:02:56.2]} 5...
O-O {[%clk 0:02:54]} 6. Qc2 {[%clk 0:02:56.2]} 6... dxc4 {[%clk 0:02:51.2]} 7.
Na3 {[%clk 0:02:52.1]} 7... c5 {[%clk 0:02:47.6]} 8. Ne5 {[%clk 0:02:46.9]} 8...
Nd5 {[%clk 0:02:33.1]} 9. Naxc4 {[%clk 0:02:41.3]} 9... f6 {[%clk 0:02:31.2]}
10. Nf3 {[%clk 0:02:28.6]} 10... Nc6 {[%clk 0:02:30.5]} 11. a3 {[%clk
0:02:24.7]} 11... e5 {[%clk 0:02:29.5]} 12. d3 {[%clk 0:02:21.7]} 12... Be6
{[%clk 0:02:26.4]} 13. Bd2 {[%clk 0:02:09.9]} 13... Rc8 {[%clk 0:02:20.6]} 14.
Rfc1 {[%clk 0:02:02.4]} 14... Qd7 {[%clk 0:02:18.5]} 15. Qd1 {[%clk 0:01:50]}
15... Rfd8 {[%clk 0:02:17.8]} 16. Ne3 {[%clk 0:01:40.4]} 16... Nc7 {[%clk
0:02:12.2]} 17. Nc2 {[%clk 0:01:39]} 17... b6 {[%clk 0:02:07.6]} 18. b4 {[%clk
0:01:35.7]} 18... cxb4 {[%clk 0:02:06.5]} 19. Nxb4 {[%clk 0:01:35.2]} 19... Nxb4
{[%clk 0:02:03.7]} 20. Bxb4 {[%clk 0:01:35.2]} 20... Bxb4 {[%clk 0:01:58.6]} 21.
axb4 {[%clk 0:01:34.7]} 21... Nd5 {[%clk 0:01:58.9]} 22. Qd2 {[%clk 0:01:19.1]}
22... Rxc1+ {[%clk 0:01:47.6]} 23. Rxc1 {[%clk 0:01:18.1]} 23... Qb5 {[%clk
0:01:47.8]} 24. Qa2 {[%clk 0:00:53.2]} 24... Qd7 {[%clk 0:01:39.6]} 25. Qa3
{[%clk 0:00:46.5]} 25... Qe7 {[%clk 0:01:13.4]} 26. Ra1 {[%clk 0:00:40.4]} 26...
Rc8 {[%clk 0:01:04.7]} 27. h4 {[%clk 0:00:29.5]} 27... Rc7 {[%clk 0:01:02]} 28.
Nd2 {[%clk 0:00:12.8]} 28... Nxb4 {[%clk 0:00:58.8]} 29. Ne4 {[%clk 0:00:05.5]}
29... a5 {[%clk 0:00:56.4]} 30. Rb1 {[%clk 0:00:03.5]} 30... Qd7 {[%clk
0:00:52.4]} 31. Nc3 {[%clk 0:00:02.7]} 31... h6 {[%clk 0:00:48.3]} 32. Qb2
{[%clk 0:00:01.7]} 32... Kh7 {[%clk 0:00:47.9]} 33. Ne4 {[%clk 0:00:01.6]} 33...
Rc2 {[%clk 0:00:43.8]} 0-1

[Event "*** Titled Tuesday Blitz"]
[Site "Chess.com"]
[Date "2020.05.12"]
[Round "1"]
[White "Glidzhian_Gor"]
[Black "luizwas"]
[Result "1-0"]
[WhiteElo "2466"]
[BlackElo "1720"]
[TimeControl "180+1"]
[EndTime "10:06:46 PDT"]
[Termination "Glidzhian_Gor won by checkmate"]

1. e4 {[%clk 0:03:00.9]} 1... e6 {[%clk 0:02:59.7]} 2. d4 {[%clk 0:03:00.1]}
2... d5 {[%clk 0:03:00.1]} 3. Nc3 {[%clk 0:03:00.1]} 3... Nf6 {[%clk 0:02:57.5]}
4. Bd3 {[%clk 0:02:57.6]} 4... dxe4 {[%clk 0:02:54.7]} 5. Nxe4 {[%clk
0:02:58.5]} 5... Nxe4 {[%clk 0:02:54.6]} 6. Bxe4 {[%clk 0:02:59.4]} 6... Bd6
{[%clk 0:02:53.8]} 7. Nf3 {[%clk 0:02:59]} 7... O-O {[%clk 0:02:52.3]} 8. O-O
{[%clk 0:02:59.3]} 8... Nd7 {[%clk 0:02:46.3]} 9. Bg5 {[%clk 0:02:58.2]} 9...
Nf6 {[%clk 0:02:43.6]} 10. Bd3 {[%clk 0:02:57.6]} 10... h6 {[%clk 0:02:43.6]}
11. Bh4 {[%clk 0:02:57.8]} 11... b6 {[%clk 0:02:39.4]} 12. Re1 {[%clk
0:02:53.1]} 12... Bb7 {[%clk 0:02:39.1]} 13. c3 {[%clk 0:02:51.1]} 13... Be7
{[%clk 0:02:26.6]} 14. Bc2 {[%clk 0:02:49.4]} 14... Nd5 {[%clk 0:02:16.6]} 15.
Qd3 {[%clk 0:02:43.4]} 15... g6 {[%clk 0:02:06.2]} 16. Bg3 {[%clk 0:01:48.4]}
16... Kg7 {[%clk 0:01:47.6]} 17. Rxe6 {[%clk 0:01:44]} 17... f5 {[%clk 0:00:51]}
18. Ne5 {[%clk 0:01:22.1]} 18... Bf6 {[%clk 0:00:40.3]} 19. Nxg6 {[%clk
0:01:17.7]} 19... Rf7 {[%clk 0:00:20.2]} 20. Qxf5 {[%clk 0:01:04.9]} 20... Bg5
{[%clk 0:00:17]} 21. Be5+ {[%clk 0:01:02.9]} 21... Kg8 {[%clk 0:00:10.3]} 22.
Qd3 {[%clk 0:00:48.9]} 22... Nf4 {[%clk 0:00:07.3]} 23. Nxf4 {[%clk 0:00:47.8]}
23... Bxf4 {[%clk 0:00:06.1]} 24. Qg6+ {[%clk 0:00:22.4]} 24... Kf8 {[%clk
0:00:06.3]} 25. Bxf4 {[%clk 0:00:22.8]} 25... Qd5 {[%clk 0:00:05.6]} 26. Bxh6+
{[%clk 0:00:22]} 26... Rg7 {[%clk 0:00:04.5]} 27. Qxg7# {[%clk 0:00:22.4]} 1-0

[Event "*** Titled Tuesday Blitz"]
[Site "Chess.com"]
[Date "2020.05.12"]
[Round "1"]
[White "Usurpov"]
[Black "GHANDEEVAM2003"]
[Result "0-1"]
[WhiteElo "2457"]
[BlackElo "2939"]
[TimeControl "180+1"]
[EndTime "10:06:47 PDT"]
[Termination "GHANDEEVAM2003 won on time"]

1. e4 {[%clk 0:02:58.5]} 1... e6 {[%clk 0:02:59.8]} 2. d4 {[%clk 0:02:50.9]}
2... d5 {[%clk 0:02:59.8]} 3. e5 {[%clk 0:02:51.3]} 3... c5 {[%clk 0:02:58.8]}
4. c3 {[%clk 0:02:51.8]} 4... Nc6 {[%clk 0:02:59.4]} 5. Nf3 {[%clk 0:02:51.5]}
5... Qb6 {[%clk 0:02:59.9]} 6. a3 {[%clk 0:02:51.8]} 6... c4 {[%clk 0:03:00.1]}
7. Nbd2 {[%clk 0:02:49.7]} 7... Na5 {[%clk 0:03:00.6]} 8. Rb1 {[%clk 0:02:49]}
8... Bd7 {[%clk 0:03:01]} 9. Be2 {[%clk 0:02:45.4]} 9... Ne7 {[%clk 0:03:01.4]}
10. b4 {[%clk 0:02:43.5]} 10... cxb3 {[%clk 0:03:02.3]} 11. Nxb3 {[%clk
0:02:42.9]} 11... Ba4 {[%clk 0:02:57.9]} 12. Nxa5 {[%clk 0:02:42.3]} 12... Qxa5
{[%clk 0:02:52.5]} 13. Qd2 {[%clk 0:02:38.2]} 13... Qc7 {[%clk 0:02:48.6]} 14.
O-O {[%clk 0:02:22.6]} 14... Rc8 {[%clk 0:02:49]} 15. Qf4 {[%clk 0:01:56.5]}
15... h6 {[%clk 0:02:42.6]} 16. Bd2 {[%clk 0:01:53.6]} 16... g5 {[%clk
0:02:38.2]} 17. Qg4 {[%clk 0:01:49.4]} 17... Bg7 {[%clk 0:02:22.5]} 18. h4
{[%clk 0:01:38.8]} 18... Bc2 {[%clk 0:02:21]} 19. Rbc1 {[%clk 0:00:59.4]} 19...
Bf5 {[%clk 0:02:20.2]} 20. Qg3 {[%clk 0:00:58.3]} 20... g4 {[%clk 0:02:19.3]}
21. Ne1 {[%clk 0:00:56.9]} 21... Rg8 {[%clk 0:02:15.8]} 22. Nd3 {[%clk
0:00:53.6]} 22... Bf8 {[%clk 0:02:04.3]} 23. Nf4 {[%clk 0:00:50.7]} 23... Kd8
{[%clk 0:02:01.7]} 24. c4 {[%clk 0:00:45.2]} 24... dxc4 {[%clk 0:01:59.3]} 25.
Bxc4 {[%clk 0:00:44.8]} 25... Qd7 {[%clk 0:01:57]} 26. Nh5 {[%clk 0:00:40.8]}
26... Qa4 {[%clk 0:01:49]} 27. Bb4 {[%clk 0:00:19.2]} 27... Nc6 {[%clk
0:01:40.1]} 28. d5 {[%clk 0:00:15.3]} 28... Nxb4 {[%clk 0:01:37.8]} 29. axb4
{[%clk 0:00:14.9]} 29... Qxb4 {[%clk 0:01:37.1]} 30. Nf6 {[%clk 0:00:13.8]}
30... Rg6 {[%clk 0:01:30.7]} 31. Ba2 {[%clk 0:00:06.8]} 31... Rxc1 {[%clk
0:01:25.5]} 32. Rxc1 {[%clk 0:00:07.7]} 32... Qd2 {[%clk 0:01:21.2]} 33. Ra1
{[%clk 0:00:03.5]} 33... Qb2 {[%clk 0:01:19.8]} 34. Rd1 {[%clk 0:00:02.2]} 34...
Qxa2 {[%clk 0:01:11.9]} 35. dxe6+ {[%clk 0:00:02.6]} 35... Ke7 {[%clk
0:01:12.5]} 36. Qc3 {[%clk 0:00:02.5]} 36... Kxe6 {[%clk 0:01:01.5]} 37. Qc4+
{[%clk 0:00:02.1]} 37... Qxc4 {[%clk 0:00:59.4]} 0-1

[Event "*** Titled Tuesday Blitz"]
[Site "Chess.com"]
[Date "2020.05.12"]
[Round "1"]
[White "Mikhail_Golubev"]
[Black "mirochka"]
[Result "1-0"]
[WhiteElo "2510"]
[BlackElo "2130"]
[TimeControl "180+1"]
[EndTime "10:06:47 PDT"]
[Termination "Mikhail_Golubev won by resignation"]

1. e4 {[%clk 0:03:00.9]} 1... c5 {[%clk 0:02:59]} 2. Nf3 {[%clk 0:03:00.6]} 2...
Nc6 {[%clk 0:02:57.9]} 3. Nc3 {[%clk 0:02:59.8]} 3... e6 {[%clk 0:02:51]} 4. d4
{[%clk 0:02:59.2]} 4... cxd4 {[%clk 0:02:50.9]} 5. Nxd4 {[%clk 0:02:59.4]} 5...
Qc7 {[%clk 0:02:49.1]} 6. Be3 {[%clk 0:02:58.6]} 6... a6 {[%clk 0:02:48.1]} 7.
a3 {[%clk 0:02:57]} 7... Nf6 {[%clk 0:02:45.9]} 8. f4 {[%clk 0:02:54]} 8... Nxd4
{[%clk 0:01:58.2]} 9. Bxd4 {[%clk 0:02:50.9]} 9... Qxf4 {[%clk 0:01:53.1]} 10.
g3 {[%clk 0:02:45.9]} 10... Qg4 {[%clk 0:01:46]} 11. Be2 {[%clk 0:02:34.9]}
11... Qg6 {[%clk 0:01:44.6]} 12. e5 {[%clk 0:02:14.5]} 12... Nd5 {[%clk
0:01:32.3]} 13. Nxd5 {[%clk 0:02:02.9]} 13... exd5 {[%clk 0:01:31.6]} 14. O-O
{[%clk 0:02:03.2]} 14... Be7 {[%clk 0:01:17.3]} 15. Bh5 {[%clk 0:02:00]} 15...
Qc6 {[%clk 0:00:50.4]} 16. Bxf7+ {[%clk 0:01:58.6]} 16... Kd8 {[%clk 0:00:46.6]}
17. Bxd5 {[%clk 0:01:58.5]} 17... Qc7 {[%clk 0:00:33.7]} 18. b4 {[%clk
0:01:19.2]} 18... a5 {[%clk 0:00:19.5]} 19. Qd2 {[%clk 0:01:00.3]} 19... Ra6
{[%clk 0:00:18.4]} 20. b5 {[%clk 0:00:54.4]} 20... Rg6 {[%clk 0:00:17.3]} 21. b6
{[%clk 0:00:34]} 21... Rxb6 {[%clk 0:00:13.3]} 22. Bxb6 {[%clk 0:00:33.9]} 22...
Qxb6+ {[%clk 0:00:13.9]} 23. Kh1 {[%clk 0:00:34]} 23... Qc7 {[%clk 0:00:13.7]}
24. Rab1 {[%clk 0:00:33.6]} 24... b6 {[%clk 0:00:13.8]} 25. e6 {[%clk
0:00:29.3]} 25... Ba6 {[%clk 0:00:13.4]} 26. Rf7 {[%clk 0:00:27.5]} 26... Bb7
{[%clk 0:00:12.6]} 27. Bxb7 {[%clk 0:00:23.5]} 27... Qxb7+ {[%clk 0:00:12.4]}
28. Qg2 {[%clk 0:00:23.7]} 28... Qc7 {[%clk 0:00:11.8]} 29. Qa8+ {[%clk
0:00:22.1]} 1-0

[Event "*** Titled Tuesday Blitz"]
[Site "Chess.com"]
[Date "2020.05.12"]
[Round "1"]
[White "tonyq11"]
[Black "Meri-Arabidze"]
[Result "0-1"]
[WhiteElo "2236"]
[BlackElo "2568"]
[TimeControl "180+1"]
[EndTime "10:06:48 PDT"]
[Termination "Meri-Arabidze won on time"]

1. d4 {[%clk 0:03:00.9]} 1... d5 {[%clk 0:02:59.7]} 2. c4 {[%clk 0:03:00.9]}
2... e6 {[%clk 0:03:00.3]} 3. Nc3 {[%clk 0:03:01.2]} 3... Nf6 {[%clk 0:03:00.5]}
4. Bf4 {[%clk 0:03:01.3]} 4... Nbd7 {[%clk 0:02:59]} 5. e3 {[%clk 0:03:01.5]}
5... c6 {[%clk 0:02:57.7]} 6. Nf3 {[%clk 0:03:01.5]} 6... Be7 {[%clk 0:02:56.5]}
7. Bd3 {[%clk 0:03:01.1]} 7... O-O {[%clk 0:02:56.3]} 8. O-O {[%clk 0:02:57.8]}
8... Nh5 {[%clk 0:02:53.3]} 9. Bg3 {[%clk 0:02:42.4]} 9... Nxg3 {[%clk
0:02:53.3]} 10. hxg3 {[%clk 0:02:43.3]} 10... f5 {[%clk 0:02:53.6]} 11. cxd5
{[%clk 0:02:41.2]} 11... exd5 {[%clk 0:02:52.8]} 12. Rc1 {[%clk 0:02:35.3]}
12... Bd6 {[%clk 0:02:51.8]} 13. Qc2 {[%clk 0:02:23.7]} 13... Qf6 {[%clk
0:02:50.9]} 14. Nh4 {[%clk 0:02:16]} 14... Nb6 {[%clk 0:02:45.1]} 15. a4 {[%clk
0:02:14.8]} 15... a5 {[%clk 0:02:38.6]} 16. Qb3 {[%clk 0:02:10.9]} 16... Bb4
{[%clk 0:02:17.5]} 17. Nf3 {[%clk 0:02:08.2]} 17... Nd7 {[%clk 0:02:14.7]} 18.
Na2 {[%clk 0:02:00.8]} 18... Bd6 {[%clk 0:02:12.8]} 19. Qc2 {[%clk 0:02:00.5]}
19... g6 {[%clk 0:02:08]} 20. Rb1 {[%clk 0:01:54.8]} 20... Qe7 {[%clk
0:02:07.1]} 21. Rfe1 {[%clk 0:01:45]} 21... Nf6 {[%clk 0:02:07.1]} 22. b3 {[%clk
0:01:21.3]} 22... Ne4 {[%clk 0:02:06.2]} 23. Qb2 {[%clk 0:01:17.7]} 23... Ba3
{[%clk 0:02:03.5]} 24. Qc2 {[%clk 0:01:16]} 24... Bd6 {[%clk 0:02:04]} 25. Qb2
{[%clk 0:01:16.1]} 25... Re8 {[%clk 0:02:02.4]} 26. Re2 {[%clk 0:01:10.3]} 26...
Be6 {[%clk 0:01:58.9]} 27. Qc1 {[%clk 0:01:01.5]} 27... Bf7 {[%clk 0:01:57.2]}
28. Reb2 {[%clk 0:01:01.2]} 28... g5 {[%clk 0:01:51.3]} 29. Rc2 {[%clk
0:00:59.6]} 29... Bg6 {[%clk 0:01:51.1]} 30. Nd2 {[%clk 0:00:49.9]} 30... g4
{[%clk 0:01:48.3]} 31. Nxe4 {[%clk 0:00:45.5]} 31... fxe4 {[%clk 0:01:48.8]} 32.
Be2 {[%clk 0:00:45.4]} 32... h5 {[%clk 0:01:49.4]} 33. Qd2 {[%clk 0:00:43.4]}
33... Rf8 {[%clk 0:01:49.4]} 34. Rcb2 {[%clk 0:00:28.5]} 34... Rf7 {[%clk
0:01:49.1]} 35. b4 {[%clk 0:00:26.6]} 35... axb4 {[%clk 0:01:48]} 36. Nxb4
{[%clk 0:00:26.6]} 36... Rxa4 {[%clk 0:01:45.2]} 37. Nc2 {[%clk 0:00:16.1]}
37... b5 {[%clk 0:01:44.7]} 38. Nb4 {[%clk 0:00:12.1]} 38... Bxb4 {[%clk
0:01:40.2]} 39. Rxb4 {[%clk 0:00:12.1]} 39... Ra8 {[%clk 0:01:40.8]} 40. Qc2
{[%clk 0:00:10.2]} 40... Rf6 {[%clk 0:01:38.2]} 41. R4b3 {[%clk 0:00:09.5]}
41... Raf8 {[%clk 0:01:37.8]} 42. Rf1 {[%clk 0:00:06.9]} 42... Be8 {[%clk
0:01:38.4]} 43. Rc3 {[%clk 0:00:05.5]} 43... Bd7 {[%clk 0:01:38.1]} 44. Rc5
{[%clk 0:00:05.4]} 44... Qh7 {[%clk 0:01:37.4]} 45. f4 {[%clk 0:00:03.6]} 45...
gxf3 {[%clk 0:01:37]} 46. gxf3 {[%clk 0:00:04]} 46... Qg7 {[%clk 0:01:35.5]} 47.
Kf2 {[%clk 0:00:02.5]} 47... exf3 {[%clk 0:01:34.2]} 48. Bd3 {[%clk 0:00:03]}
48... Qg5 {[%clk 0:01:25.7]} 49. Rh1 {[%clk 0:00:02.3]} 49... R8f7 {[%clk
0:01:23.6]} 0-1

[Event "*** Titled Tuesday Blitz"]
[Site "Chess.com"]
[Date "2020.05.12"]
[Round "1"]
[White "1977Ivan"]
[Black "krasavetc"]
[Result "1-0"]
[WhiteElo "2648"]
[BlackElo "2326"]
[TimeControl "180+1"]
[EndTime "10:06:49 PDT"]
[Termination "1977Ivan won by resignation"]

1. e4 {[%clk 0:03:00.7]} 1... e6 {[%clk 0:02:57.8]} 2. Nf3 {[%clk 0:02:59.6]}
2... d5 {[%clk 0:02:57.4]} 3. e5 {[%clk 0:02:59.7]} 3... c5 {[%clk 0:02:56.8]}
4. c3 {[%clk 0:02:59.1]} 4... Nc6 {[%clk 0:02:56.6]} 5. Na3 {[%clk 0:02:58.7]}
5... Nge7 {[%clk 0:02:54.1]} 6. Nc2 {[%clk 0:02:56.7]} 6... Nf5 {[%clk
0:02:51.8]} 7. d4 {[%clk 0:02:56.2]} 7... cxd4 {[%clk 0:02:51.5]} 8. Ncxd4
{[%clk 0:02:50]} 8... Ncxd4 {[%clk 0:02:49.1]} 9. cxd4 {[%clk 0:02:48.8]} 9...
Bb4+ {[%clk 0:02:48.5]} 10. Bd2 {[%clk 0:02:48.2]} 10... Bxd2+ {[%clk
0:02:48.6]} 11. Qxd2 {[%clk 0:02:47.9]} 11... O-O {[%clk 0:02:49.5]} 12. Bd3
{[%clk 0:02:45.6]} 12... h6 {[%clk 0:02:47]} 13. h4 {[%clk 0:02:35.2]} 13... h5
{[%clk 0:02:10]} 14. Bxf5 {[%clk 0:01:58.1]} 14... exf5 {[%clk 0:02:09.8]} 15.
O-O {[%clk 0:01:58.6]} 15... Be6 {[%clk 0:02:08.2]} 16. Rfc1 {[%clk 0:01:55.2]}
16... Qe7 {[%clk 0:02:03.9]} 17. Rc5 {[%clk 0:01:52.1]} 17... b6 {[%clk
0:02:01.1]} 18. Rc6 {[%clk 0:01:49]} 18... Rac8 {[%clk 0:02:00.3]} 19. Rac1
{[%clk 0:01:48.9]} 19... Rxc6 {[%clk 0:01:59.6]} 20. Rxc6 {[%clk 0:01:49.5]}
20... Rc8 {[%clk 0:01:59.6]} 21. Qc3 {[%clk 0:01:41.9]} 21... Rxc6 {[%clk
0:01:53.7]} 22. Qxc6 {[%clk 0:01:41.2]} 22... g6 {[%clk 0:01:49.5]} 23. a3
{[%clk 0:01:23.9]} 23... Kg7 {[%clk 0:01:48.4]} 24. Kh2 {[%clk 0:01:22.7]} 24...
Qd7 {[%clk 0:01:43.8]} 25. Qxd7 {[%clk 0:01:16]} 25... Bxd7 {[%clk 0:01:44.7]}
26. Kg3 {[%clk 0:01:16.2]} 26... f6 {[%clk 0:01:41.6]} 27. Kf4 {[%clk
0:01:15.6]} 27... Bb5 {[%clk 0:01:37.4]} 28. g3 {[%clk 0:00:56.1]} 28... Be2
{[%clk 0:01:34.1]} 29. Ne1 {[%clk 0:00:53.2]} 29... Kf7 {[%clk 0:01:26.9]} 30.
Nc2 {[%clk 0:00:52.8]} 30... Ke6 {[%clk 0:01:24.3]} 31. exf6 {[%clk 0:00:52.9]}
31... Kxf6 {[%clk 0:01:23.5]} 32. Ne3 {[%clk 0:00:53.8]} 32... Bc4 {[%clk
0:01:02.7]} 33. f3 {[%clk 0:00:53.6]} 33... b5 {[%clk 0:01:00.2]} 34. g4 {[%clk
0:00:54.1]} 34... hxg4 {[%clk 0:00:59.8]} 35. fxg4 {[%clk 0:00:54.3]} 35... fxg4
{[%clk 0:00:57.4]} 36. Nxg4+ {[%clk 0:00:55.2]} 36... Kg7 {[%clk 0:00:56.1]} 37.
Ke5 {[%clk 0:00:54.9]} 37... a5 {[%clk 0:00:54.1]} 38. Nf6 {[%clk 0:00:55.1]}
38... Kh6 {[%clk 0:00:50.9]} 39. Nxd5 {[%clk 0:00:55.2]} 39... Kh5 {[%clk
0:00:51]} 40. Nf4+ {[%clk 0:00:54.7]} 40... Kh6 {[%clk 0:00:49.5]} 41. d5 {[%clk
0:00:54.4]} 41... b4 {[%clk 0:00:49.7]} 42. axb4 {[%clk 0:00:53.3]} 42... axb4
{[%clk 0:00:50.6]} 43. d6 {[%clk 0:00:53.6]} 43... Bb5 {[%clk 0:00:51]} 44. Kf6
{[%clk 0:00:53.3]} 44... b3 {[%clk 0:00:48.7]} 45. Ke7 {[%clk 0:00:48.2]} 45...
g5 {[%clk 0:00:48.1]} 46. hxg5+ {[%clk 0:00:46.9]} 46... Kxg5 {[%clk 0:00:49]}
47. Nd5 {[%clk 0:00:46.8]} 47... Kf5 {[%clk 0:00:48.3]} 48. Nc3 {[%clk
0:00:45.9]} 48... Bc6 {[%clk 0:00:47]} 49. d7 {[%clk 0:00:45.9]} 49... Bxd7
{[%clk 0:00:47.1]} 50. Kxd7 {[%clk 0:00:46.8]} 50... Ke5 {[%clk 0:00:48]} 51.
Kc6 {[%clk 0:00:46.9]} 51... Kd4 {[%clk 0:00:48.3]} 52. Kb5 {[%clk 0:00:46.8]}
52... Kd3 {[%clk 0:00:48.4]} 53. Kb4 {[%clk 0:00:43.4]} 53... Kc2 {[%clk
0:00:49.3]} 54. Na4 {[%clk 0:00:43.2]} 1-0